fUST/lending_fUST_20250817
["ID","MTS","AMOUNT","RATE_DAILY","PERIOD"]
[379661558,1755364241702,-480.0,0.0002096,2]
[379661561,1755364241714,-480.0,0.0002096,2]
[379661563,1755364241723,-3637.8,0.0002096,2]
[379661566,1755364241732,-5249.45,0.0002096,2]
[379661567,1755364241741,-723.45,0.0002096,2]
[379661568,1755364241749,-480.0,0.0002096,2]
[379661569,1755364241758,-4083.81,0.0002096,2]
[379661570,1755364241767,-440.0,0.0002096,2]
[379661571,1755364241776,-480.0,0.0002096,2]
[379661573,1755364241787,-9528.76,0.0002096,2]
[379661575,1755364241797,-1447.43,0.0002096,2]
[379661577,1755364241806,-480.0,0.0002096,2]
[379661578,1755364241815,-480.0,0.0002096,2]
[379661580,1755364241824,-480.0,0.0002096,2]
[379661582,1755364241833,-763.44,0.0002096,2]
[379661584,1755364241842,-1798.09,0.0002096,2]
[379661586,1755364241851,-733.1,0.0002096,2]
[379661588,1755364241860,-797.36,0.0002096,2]
[379661590,1755364241869,-2218.25,0.0002096,2]
[379661592,1755364241878,-480.0,0.0002096,2]
[379661594,1755364241887,-1938.31,0.0002096,2]
[379661595,1755364241897,-480.0,0.00020961,2]
[379661597,1755364241906,-480.0,0.00020961,2]
[379661599,1755364241915,-241.91185123,0.00020961,2]
[379661601,1755364241924,-480.0,0.00020961,2]
[379661603,1755364241933,-480.0,0.00020961,2]
[379661605,1755364241942,-480.0,0.00020961,2]
[379661607,1755364241951,-480.0,0.00020961,2]
[379661609,1755364241960,-480.0,0.00020961,2]
[379661611,1755364241969,-436.36674258,0.00020961,2]
[379661613,1755364241978,-480.0,0.00020961,2]
[379661614,1755364241987,-480.0,0.00020961,2]
[379661616,1755364241996,-469.11945033,0.00020961,2]
[379661618,1755364242005,-480.0,0.00020961,2]
[379661620,1755364242014,-445.06030268,0.00020961,2]
[379661622,1755364242023,-440.94623783,0.00020961,2]
[379661624,1755364242032,-480.0,0.00020961,2]
[379661627,1755364242041,-443.97386721,0.00020961,2]
[379661629,1755364242050,-480.0,0.00020961,2]
[379661632,1755364242059,-460.0,0.00020961,2]
[379661635,1755364242068,-480.0,0.00020961,2]
[379661638,1755364242078,-1312.1,0.00020961,2]
[379661641,1755364242088,-480.0,0.00020961,2]
[379661644,1755364242097,-480.0,0.00020961,2]
[379661647,1755364242106,-480.0,0.00020961,2]
[379661650,1755364242115,-460.0,0.00020961,2]
[379661653,1755364242124,-480.0,0.00020961,2]
[379661656,1755364242133,-480.0,0.00020961,2]
[379661659,1755364242143,-480.0,0.00020961,2]
[379661662,1755364242152,-480.0,0.00020961,2]
[379661665,1755364242161,-792.51,0.00020961,2]
[379661668,1755364242171,-572.29,0.00020961,2]
[379661671,1755364242180,-460.0,0.00020961,2]
[379661674,1755364242191,-440.0,0.00020961,2]
[379661677,1755364242201,-480.0,0.00020961,2]
[379661680,1755364242210,-480.0,0.00020961,2]
[379661683,1755364242220,-480.0,0.00020961,2]
[379661686,1755364242230,-480.0,0.00020961,2]
[379661690,1755364242243,-562.51060346,0.00020961,2]
[379661693,1755364242253,-423.66804916,0.00020961,2]
[379661696,1755364242262,-440.0,0.00020961,2]
[379661699,1755364242272,-480.0,0.00020961,2]
[379661702,1755364242281,-480.0,0.00020961,2]
[379661705,1755364242290,-690.14,0.00020961,2]
[379661707,1755364242299,-480.0,0.00020961,2]
[379661710,1755364242308,-480.0,0.00020961,2]
[379661713,1755364242317,-480.0,0.00020961,2]
[379661716,1755364242327,-440.0,0.00020961,2]
[379661719,1755364242336,-480.0,0.00020961,2]
[379661722,1755364242345,-480.0,0.00020961,2]
[379661724,1755364242354,-480.0,0.00020961,2]
[379661726,1755364242364,-480.0,0.00020961,2]
[379661728,1755364242374,-441.18199576,0.00020961,2]
[379661732,1755364242384,-480.0,0.00020961,2]
[379661734,1755364242394,-480.0,0.00020961,2]
[379661737,1755364242404,-480.0,0.00020961,2]
[379661740,1755364242413,-480.0,0.00020961,2]
[379661743,1755364242422,-480.0,0.00020961,2]
[379661746,1755364242431,-480.0,0.00020961,2]
[379661749,1755364242440,-480.0,0.00020961,2]
[379661752,1755364242449,-480.0,0.00020961,2]
[379661755,1755364242458,-574.49171777,0.00020961,2]
[379661757,1755364242468,-195.01925038,0.00020961,2]
[379661760,1755364242476,-480.0,0.00020961,2]
[379661763,1755364242486,-480.0,0.00020961,2]
[379661766,1755364242495,-480.0,0.00020961,2]
[379661769,1755364242505,-480.0,0.00020961,2]
[379661772,1755364242514,-460.0,0.00020961,2]
[379661775,1755364242523,-480.0,0.00020961,2]
[379661778,1755364242532,-480.0,0.00020961,2]
[379661781,1755364242542,-713.76,0.00020961,2]
[379661785,1755364242551,-480.0,0.00020961,2]
[379661788,1755364242561,-480.0,0.00020961,2]
[379661792,1755364242571,-408.91524161,0.00020961,2]
[379661795,1755364242582,-480.0,0.00020961,2]
[379661798,1755364242592,-441.59428367,0.00020961,2]
[379661802,1755364242609,-480.0,0.00020961,2]
[379661805,1755364242619,-480.0,0.00020961,2]
[379661807,1755364242628,-460.43017989,0.00020961,2]
[379661810,1755364242637,-480.0,0.00020961,2]
[379661813,1755364242646,-520.30738997,0.00020961,2]
[379661816,1755364242656,-480.0,0.00020961,2]
[379661821,1755364242666,-480.0,0.00020961,2]
[379661823,1755364242676,-480.0,0.00020961,2]
[379661826,1755364242685,-925.85,0.00020961,2]
[379661829,1755364242694,-480.0,0.00020961,2]
[379661831,1755364242704,-635.34,0.00020961,2]
[379661834,1755364242713,-480.0,0.00020961,2]
[379661837,1755364242721,-480.0,0.00020961,2]
[379661840,1755364242732,-480.0,0.00020961,2]
[379661844,1755364242743,-558.33,0.00020961,2]
[379661846,1755364242752,-480.0,0.00020961,2]
[379661849,1755364242761,-480.0,0.00020961,2]
[379661852,1755364242771,-257.04727961,0.00020961,2]
[379661855,1755364242780,-480.0,0.00020961,2]
[379661858,1755364242798,-460.0,0.00020961,2]
[379661861,1755364242818,-480.0,0.00020961,2]
[379661864,1755364242827,-586.81194652,0.00020961,2]
[379661867,1755364242837,-480.0,0.00020961,2]
[379661870,1755364242846,-202.65308231,0.00020961,2]
[379661873,1755364242856,-1465.47,0.00020961,2]
[379661877,1755364242866,-480.0,0.00020961,2]
[379661880,1755364242877,-480.0,0.00020961,2]
[379661882,1755364242886,-480.0,0.00020961,2]
[379661885,1755364242896,-480.0,0.00020961,2]
[379661888,1755364242905,-480.0,0.00020961,2]
[379661890,1755364242915,-480.0,0.00020961,2]
[379661892,1755364242925,-480.0,0.00020961,2]
[379661894,1755364242934,-480.0,0.00020961,2]
[379661897,1755364242944,-480.0,0.00020961,2]
[379661900,1755364242954,-678.02,0.00020961,2]
[379661903,1755364242963,-480.0,0.00020961,2]
[379661905,1755364242972,-480.0,0.00020961,2]
[379661908,1755364242982,-480.0,0.00020961,2]
[379661911,1755364242990,-480.0,0.00020961,2]
[379661914,1755364243000,-1000.0,0.00020961,2]
[379661917,1755364243011,-525.94568075,0.00020961,2]
[379661920,1755364243020,-480.0,0.00020961,2]
[379661923,1755364243029,-480.0,0.00020961,2]
[379661926,1755364243039,-480.0,0.00020961,2]
[379661930,1755364243049,-480.0,0.00020961,2]
[379661933,1755364243058,-441.75929617,0.00020961,2]
[379661936,1755364243068,-441.44733662,0.00020961,2]
[379661939,1755364243077,-480.0,0.00020961,2]
[379661942,1755364243086,-480.0,0.00020961,2]
[379661944,1755364243095,-480.0,0.00020961,2]
[379661947,1755364243104,-16964.14,0.00020963,2]
[379661950,1755364243113,-2812.25,0.00020963,2]
[379661953,1755364243122,-12191.79,0.00020963,2]
[379661956,1755364243131,-1659.54,0.0002104,2]
[379661959,1755364243141,-480.0,0.0002104,2]
[379661962,1755364243150,-647.63,0.0002104,2]
[379661965,1755364243159,-1818.07,0.0002104,2]
[379661968,1755364243168,-1496.06,0.0002104,2]
[379661971,1755364243178,-2148.33,0.0002104,2]
[379661974,1755364243187,-480.0,0.0002104,2]
[379661977,1755364243196,-1653.82,0.0002104,2]
[379661980,1755364243205,-933.99,0.0002104,2]
[379661983,1755364243215,-16205.7,0.0002104,2]
[379661986,1755364243224,-480.0,0.00021047,2]
[379661990,1755364243234,-480.0,0.00021047,2]
[379661992,1755364243243,-1177.43,0.00021047,2]
[379661995,1755364243252,-480.0,0.00021047,2]
[379661999,1755364243263,-480.0,0.00021047,2]
[379662001,1755364243274,-480.0,0.00021047,2]
[379662004,1755364243283,-480.0,0.00021047,2]
[379662007,1755364243295,-480.0,0.00021047,2]
[379662010,1755364243304,-480.0,0.00021047,2]
[379662013,1755364243315,-1101.84,0.00021047,2]
[379662016,1755364243326,-480.0,0.00021047,2]
[379662019,1755364243337,-480.0,0.00021047,2]
[379662022,1755364243346,-480.0,0.00021047,2]
[379662025,1755364243355,-480.0,0.00021047,2]
[379662028,1755364243364,-701.52,0.00021047,2]
[379662031,1755364243373,-480.0,0.00021047,2]
[379662034,1755364243382,-480.0,0.00021047,2]
[379662037,1755364243391,-480.0,0.00021047,2]
[379662040,1755364243400,-480.0,0.00021047,2]
[379662044,1755364243409,-871.13,0.00021047,2]
[379662047,1755364243418,-480.0,0.00021047,2]
[379662050,1755364243427,-2093.92,0.00021047,2]
[379662053,1755364243436,-992.75,0.00021047,2]
[379662056,1755364243445,-480.0,0.00021047,2]
[379662059,1755364243455,-480.0,0.00021047,2]
[379662062,1755364243464,-480.0,0.00021047,2]
[379662065,1755364243473,-480.0,0.00021047,2]
[379662068,1755364243483,-480.0,0.00021047,2]
[379662071,1755364243492,-480.0,0.00021047,2]
[379662074,1755364243501,-440.0,0.00021047,2]
[379662077,1755364243510,-480.0,0.00021047,2]
[379662080,1755364243520,-480.0,0.00021047,2]
[379662083,1755364243530,-480.0,0.00021047,2]
[379662086,1755364243539,-480.0,0.00021047,2]
[379662089,1755364243548,-427.2165182,0.00021047,2]
[379662092,1755364243558,-480.0,0.00021047,2]
[379662095,1755364243567,-1268.9571054,0.00021084,2]
[379662098,1755364243577,-500.0,0.00021095,2]
[379662101,1755364243586,-204.55175969,0.00021099,2]
[379662105,1755364243598,-480.0,0.0002114,2]
[379662108,1755364243608,-1340.13,0.0002114,2]
[379662111,1755364243617,-480.0,0.0002114,2]
[379662114,1755364243627,-1318.97,0.0002114,2]
[379662117,1755364243636,-1581.86,0.0002114,2]
[379662144,1755364243762,-480.0,0.0002114,2]
[379662147,1755364243772,-500.0,0.0002118,2]
[379662150,1755364243781,-500.0,0.0002118,2]
[379662153,1755364243795,-492.49,0.00021211,2]
[379662156,1755364243805,-462.1417622,0.00021212,2]
[379662159,1755364243814,-160.0,0.00021212,2]
[379662162,1755364243824,-232.11368524,0.00021212,2]
[379662165,1755364243833,-160.0,0.00021212,2]
[379662168,1755364243842,-215.68093138,0.00021212,2]
[379662171,1755364243853,-528.38334358,0.00021212,2]
[379662174,1755364243862,-417.15472785,0.00021212,2]
[379662177,1755364243871,-160.0,0.00021212,2]
[379662180,1755364243881,-393.737612,0.00021225,2]
[379662183,1755364243891,-500.0,0.00021225,2]
[379662186,1755364243900,-500.0,0.00021225,2]
[379662189,1755364243909,-500.0,0.00021225,2]
[379662192,1755364243919,-500.0,0.00021225,2]
[379662195,1755364243927,-500.0,0.00021225,2]
[379662198,1755364243937,-500.0,0.00021225,2]
[379662201,1755364243953,-788.43,0.00021233,2]
[379662204,1755364243965,-480.0,0.00021233,2]
[379662207,1755364243976,-480.0,0.00021233,2]
[379662210,1755364243985,-480.0,0.00021233,2]
[379662213,1755364243995,-480.0,0.00021233,2]
[379662216,1755364244005,-480.0,0.00021233,2]
[379662219,1755364244015,-2243.48,0.00021233,2]
[379662222,1755364244026,-460.0,0.00021233,2]
[379662225,1755364244035,-480.0,0.00021233,2]
[379662228,1755364244044,-480.0,0.00021233,2]
[379662231,1755364244054,-480.0,0.00021233,2]
[379662234,1755364244064,-793.93,0.00021233,2]
[379662237,1755364244073,-480.0,0.00021233,2]
[379662240,1755364244083,-480.0,0.00021233,2]
[379662243,1755364244092,-480.0,0.00021233,2]
[379662246,1755364244101,-460.0,0.00021233,2]
[379662249,1755364244110,-480.0,0.00021233,2]
[379662252,1755364244120,-480.0,0.00021233,2]
[379662255,1755364244129,-181.95496896,0.00021233,2]
[379662258,1755364244138,-219.22811553,0.00021233,2]
[379662261,1755364244147,-480.0,0.00021233,2]
[379662264,1755364244156,-730.21,0.00021233,2]
[379662267,1755364244168,-1004.02,0.00021233,2]
[379662270,1755364244178,-480.0,0.00021233,2]
[379662273,1755364244187,-480.0,0.00021233,2]
[379662276,1755364244196,-630.03,0.00021233,2]
[379662279,1755364244205,-1947.53,0.00021233,2]
[379662282,1755364244214,-480.0,0.00021233,2]
[379662284,1755364244223,-480.0,0.00021233,2]
[379662286,1755364244233,-480.0,0.00021233,2]
[379662289,1755364244244,-480.0,0.00021233,2]
[379662290,1755364244254,-441.36459321,0.00021233,2]
[379662292,1755364244263,-480.0,0.00021233,2]
[379662294,1755364244272,-480.0,0.00021233,2]
[379662297,1755364244282,-480.0,0.00021233,2]
[379662300,1755364244295,-480.0,0.00021233,2]
[379662303,1755364244310,-877.94,0.00021233,2]
[379662306,1755364244322,-480.0,0.00021233,2]
[379662309,1755364244332,-1067.96,0.00021233,2]
[379662312,1755364244342,-1192.59,0.00021233,2]
[379662315,1755364244351,-1406.16,0.00021233,2]
[379662318,1755364244360,-1124.76,0.00021233,2]
[379662321,1755364244370,-480.0,0.00021233,2]
[379662325,1755364244379,-480.0,0.00021233,2]
[379662328,1755364244388,-2241.5,0.00021233,2]
[379662329,1755364244399,-1556.45,0.00021233,2]
[379662331,1755364244408,-1563.78,0.00021233,2]
[379662333,1755364244417,-480.0,0.00021233,2]
[379662335,1755364244425,-445.91101771,0.00021233,2]
[379662337,1755364244435,-589.16,0.00021233,2]
[379662339,1755364244444,-480.0,0.00021233,2]
[379662341,1755364244453,-480.0,0.00021233,2]
[379662342,1755364244462,-480.0,0.00021233,2]
[379662343,1755364244470,-1347.09,0.00021233,2]
[379662344,1755364244479,-1962.21,0.00021233,2]
[379662345,1755364244488,-1711.21,0.00021233,2]
[379662346,1755364244497,-1161.09,0.00021233,2]
[379662347,1755364244505,-480.0,0.00021233,2]
[379662349,1755364244514,-2569.75,0.00021233,2]
[379662351,1755364244523,-480.0,0.00021233,2]
[379662353,1755364244532,-480.0,0.00021233,2]
[379662355,1755364244541,-182.5422662,0.00021233,2]
[379662357,1755364244550,-480.0,0.00021233,2]
[379662359,1755364244559,-480.0,0.00021233,2]
[379662360,1755364244568,-596.57048043,0.00021234,2]
[379662362,1755364244577,-1129.93,0.00021234,2]
[379662364,1755364244587,-1129.93,0.00021234,2]
[379662366,1755364244596,-1562.48,0.00021234,2]
[379662369,1755364244608,-480.0,0.00021234,2]
[379662371,1755364244619,-942.38,0.00021234,2]
[379662373,1755364244631,-1569.67,0.00021234,2]
[379662375,1755364244645,-480.0,0.00021234,2]
[379662376,1755364244657,-480.0,0.00021234,2]
[379662378,1755364244667,-480.0,0.00021234,2]
[379662380,1755364244677,-3637.8,0.00021234,2]
[379662382,1755364244686,-5249.45,0.00021234,2]
[379662384,1755364244695,-723.45,0.00021234,2]
[379662386,1755364244704,-480.0,0.00021234,2]
[379662388,1755364244714,-4083.81,0.00021234,2]
[379662390,1755364244722,-480.0,0.00021234,2]
[379662392,1755364244732,-9528.76,0.00021234,2]
[379662394,1755364244741,-1447.43,0.00021234,2]
[379662396,1755364244750,-480.0,0.00021234,2]
[379662398,1755364244759,-480.0,0.00021234,2]
[379662400,1755364244768,-480.0,0.00021234,2]
[379662402,1755364244777,-763.44,0.00021234,2]
[379662404,1755364244787,-1798.09,0.00021234,2]
[379662406,1755364244800,-733.1,0.00021234,2]
[379662408,1755364244810,-797.36,0.00021234,2]
[379662410,1755364244819,-2218.25,0.00021234,2]
[379662412,1755364244828,-480.0,0.00021234,2]
[379662414,1755364244838,-1938.31,0.00021234,2]
[379662416,1755364244847,-480.0,0.00021235,2]
[379662418,1755364244856,-480.0,0.00021235,2]
[379662420,1755364244868,-480.0,0.00021235,2]
[379662422,1755364244878,-480.0,0.00021235,2]
[379662424,1755364244887,-480.0,0.00021235,2]
[379662426,1755364244897,-380.0,0.00021235,2]
[379662428,1755364244907,-480.0,0.00021235,2]
[379662430,1755364244916,-460.0,0.00021235,2]
[379662432,1755364244926,-480.0,0.00021235,2]
[379662434,1755364244935,-480.0,0.00021235,2]
[379662436,1755364244944,-175.89055285,0.00021235,2]
[379662438,1755364244954,-480.0,0.00021235,2]
[379662440,1755364244963,-1312.1,0.00021235,2]
[379662442,1755364244973,-255.32038654,0.00021235,2]
[379662444,1755364244982,-480.0,0.00021235,2]
[379662446,1755364244991,-480.0,0.00021235,2]
[379662448,1755364245001,-480.0,0.00021235,2]
[379662450,1755364245010,-480.0,0.00021235,2]
[379662452,1755364245019,-480.0,0.00021235,2]
[379662454,1755364245029,-480.0,0.00021235,2]
[379662456,1755364245038,-792.51,0.00021235,2]
[379662458,1755364245047,-572.29,0.00021235,2]
[379662460,1755364245056,-480.0,0.00021235,2]
[379662462,1755364245066,-347.29097973,0.00021235,2]
[379662464,1755364245081,-460.0,0.00021235,2]
[379662466,1755364245091,-480.0,0.00021235,2]
[379662468,1755364245101,-420.99494385,0.00021235,2]
[379662470,1755364245110,-480.0,0.00021235,2]
[379662472,1755364245120,-690.14,0.00021235,2]
[379662474,1755364245130,-268.02377944,0.00021235,2]
[379662475,1755364245140,-480.0,0.00021235,2]
[379662477,1755364245149,-480.0,0.00021235,2]
[379662480,1755364245158,-480.0,0.00021235,2]
[379662482,1755364245167,-480.0,0.00021235,2]
[379662484,1755364245177,-480.0,0.00021235,2]
[379662486,1755364245186,-480.0,0.00021235,2]
[379662488,1755364245195,-480.0,0.00021235,2]
[379662490,1755364245204,-480.0,0.00021235,2]
[379662492,1755364245213,-480.0,0.00021235,2]
[379662494,1755364245223,-480.0,0.00021235,2]
[379662496,1755364245232,-480.0,0.00021235,2]
[379662498,1755364245241,-480.0,0.00021235,2]
[379662499,1755364245250,-460.0,0.00021235,2]
[379662501,1755364245259,-480.0,0.00021235,2]
[379662503,1755364245269,-480.0,0.00021235,2]
[379662505,1755364245278,-428.81321486,0.00021235,2]
[379662507,1755364245287,-480.0,0.00021235,2]
[379662509,1755364245296,-713.76,0.00021235,2]
[379662511,1755364245306,-480.0,0.00021235,2]
[379662513,1755364245315,-480.0,0.00021235,2]
[379662515,1755364245324,-480.0,0.00021235,2]
[379662517,1755364245334,-420.84581431,0.00021235,2]
[379662519,1755364245346,-460.0,0.00021235,2]
[379662521,1755364245356,-480.0,0.00021235,2]
[379662523,1755364245365,-480.0,0.00021235,2]
[379662525,1755364245374,-480.0,0.00021235,2]
[379662527,1755364245383,-480.0,0.00021235,2]
[379662529,1755364245393,-925.85,0.00021235,2]
[379662531,1755364245402,-635.34,0.00021235,2]
[379662533,1755364245411,-467.61506618,0.00021235,2]
[379662535,1755364245422,-480.0,0.00021235,2]
[379662537,1755364245432,-480.0,0.00021235,2]
[379662539,1755364245443,-558.33,0.00021235,2]
[379662541,1755364245452,-480.0,0.00021235,2]
[379662543,1755364245461,-480.0,0.00021235,2]
[379662545,1755364245471,-480.0,0.00021235,2]
[379662547,1755364245479,-480.0,0.00021235,2]
[379662549,1755364245489,-1465.47,0.00021235,2]
[379662551,1755364245498,-440.0,0.00021235,2]
[379662553,1755364245507,-480.0,0.00021235,2]
[379662555,1755364245517,-480.0,0.00021235,2]
[379662557,1755364245525,-480.0,0.00021235,2]
[379662559,1755364245535,-480.0,0.00021235,2]
[379662561,1755364245544,-480.0,0.00021235,2]
[379662563,1755364245555,-328.58079697,0.00021235,2]
[379662566,1755364245564,-480.0,0.00021235,2]
[379662568,1755364245573,-678.02,0.00021235,2]
[379662570,1755364245582,-480.0,0.00021235,2]
[379662572,1755364245592,-480.0,0.00021235,2]
[379662575,1755364245601,-480.0,0.00021235,2]
[379662577,1755364245611,-408.98542087,0.00021235,2]
[379662579,1755364245620,-1000.0,0.00021235,2]
[379662581,1755364245630,-480.0,0.00021235,2]
[379662583,1755364245639,-480.0,0.00021235,2]
[379662585,1755364245652,-303.09042362,0.00021235,2]
[379662587,1755364245661,-480.0,0.00021235,2]
[379662589,1755364245671,-480.0,0.00021235,2]
[379662591,1755364245680,-480.0,0.00021235,2]
[379662593,1755364245689,-480.0,0.00021235,2]
[379662595,1755364245698,-16964.14,0.00021237,2]
[379662597,1755364245708,-151.0,0.00021237,2]
[379662599,1755364245717,-271.247384,0.00021237,2]
[379662601,1755364245726,-271.247384,0.00021237,2]
[379662603,1755364245735,-2812.25,0.00021237,2]
[379662605,1755364245744,-12191.79,0.00021237,2]
[379662606,1755364245753,-480.0,0.00021249,2]
[379662608,1755364245762,-480.0,0.00021249,2]
[379662610,1755364245772,-1156.62,0.00021249,2]
[379662612,1755364245782,-480.0,0.00021249,2]
[379662614,1755364245796,-460.0,0.00021249,2]
[379662616,1755364245806,-480.0,0.00021249,2]
[379662618,1755364245815,-460.0,0.00021249,2]
[379662621,1755364245825,-480.0,0.00021249,2]
[379662622,1755364245835,-480.0,0.00021249,2]
[379662624,1755364245846,-480.0,0.00021249,2]
[379662626,1755364245855,-460.0,0.00021249,2]
[379662628,1755364245864,-480.0,0.00021249,2]
[379662630,1755364245873,-480.0,0.00021249,2]
[379662632,1755364245882,-480.0,0.00021249,2]
[379662634,1755364245891,-480.0,0.00021249,2]
[379662636,1755364245900,-480.0,0.00021249,2]
[379662638,1755364245910,-464.44428695,0.00021249,2]
[379662640,1755364245919,-480.0,0.00021249,2]
[379662642,1755364245928,-480.0,0.00021249,2]
[379662656,1755364246051,-480.0,0.00021249,2]
[379662658,1755364246061,-480.0,0.00021249,2]
[379662660,1755364246071,-480.0,0.00021249,2]
[379662662,1755364246080,-460.0,0.00021249,2]
[379662664,1755364246089,-480.0,0.00021249,2]
[379662666,1755364246099,-480.0,0.00021249,2]
[379662668,1755364246108,-480.0,0.00021249,2]
[379662671,1755364246118,-480.0,0.00021249,2]
[379662673,1755364246128,-460.0,0.00021249,2]
[379662675,1755364246138,-480.0,0.00021249,2]
[379662677,1755364246148,-460.0,0.00021249,2]
[379662679,1755364246158,-443.11065905,0.00021249,2]
[379662681,1755364246167,-480.0,0.00021249,2]
[379662683,1755364246177,-495.22,0.00021249,2]
[379662685,1755364246186,-480.0,0.00021249,2]
[379662687,1755364246196,-480.0,0.00021249,2]
[379662689,1755364246206,-480.0,0.00021249,2]
[379662691,1755364246216,-460.0,0.00021249,2]
[379662693,1755364246225,-440.0,0.00021249,2]
[379662695,1755364246234,-561.09108818,0.00021249,2]
[379662697,1755364246243,-480.0,0.00021249,2]
[379662699,1755364246253,-480.0,0.00021249,2]
[379662701,1755364246262,-460.0,0.00021249,2]
[379662703,1755364246270,-480.0,0.00021249,2]
[379662705,1755364246279,-480.0,0.00021249,2]
[379662707,1755364246288,-480.0,0.00021249,2]
[379662709,1755364246297,-480.0,0.00021249,2]
[379662712,1755364246306,-480.0,0.00021249,2]
[379662714,1755364246315,-576.61,0.00021249,2]
[379662716,1755364246324,-507.22,0.00021249,2]
[379662718,1755364246334,-480.0,0.00021249,2]
[379662720,1755364246343,-480.0,0.00021249,2]
[379662722,1755364246352,-480.0,0.00021249,2]
[379662724,1755364246362,-460.0,0.00021249,2]
[379662726,1755364246371,-480.0,0.00021249,2]
[379662728,1755364246381,-480.0,0.00021249,2]
[379662729,1755364246390,-692.97,0.00021249,2]
[379662731,1755364246400,-480.0,0.00021249,2]
[379662733,1755364246409,-618.18,0.00021249,2]
[379662735,1755364246418,-480.0,0.00021249,2]
[379662737,1755364246427,-851.42,0.00021249,2]
[379662739,1755364246437,-1922.47,0.00021249,2]
[379662741,1755364246446,-480.0,0.00021249,2]
[379662743,1755364246455,-2826.97,0.00021249,2]
[379662746,1755364246466,-480.0,0.00021249,2]
[379662748,1755364246475,-1610.57,0.00021249,2]
[379662750,1755364246484,-480.0,0.00021249,2]
[379662752,1755364246493,-480.0,0.00021249,2]
[379662754,1755364246507,-460.0,0.00021249,2]
[379662756,1755364246517,-480.0,0.00021249,2]
[379662758,1755364246526,-497.02,0.00021249,2]
[379662760,1755364246535,-480.0,0.00021249,2]
[379662762,1755364246544,-480.0,0.00021249,2]
[379662764,1755364246553,-480.0,0.00021249,2]
[379662766,1755364246562,-480.0,0.00021249,2]
[379662768,1755364246572,-480.0,0.00021249,2]
[379662770,1755364246581,-480.0,0.00021249,2]
[379662772,1755364246590,-480.0,0.00021249,2]
[379662774,1755364246599,-480.0,0.00021249,2]
[379662775,1755364246608,-480.0,0.00021249,2]
[379662777,1755364246617,-480.0,0.00021249,2]
[379662779,1755364246626,-480.0,0.00021249,2]
[379662781,1755364246636,-480.0,0.00021249,2]
[379662783,1755364246646,-480.0,0.00021249,2]
[379662786,1755364246656,-480.0,0.00021249,2]
[379662787,1755364246665,-491.14,0.00021249,2]
[379662790,1755364246674,-480.0,0.00021249,2]
[379662792,1755364246684,-480.0,0.00021249,2]
[379662794,1755364246693,-158.0708324,0.00021249,2]
[379662796,1755364246702,-480.0,0.00021249,2]
[379662797,1755364246711,-460.0,0.00021249,2]
[379662799,1755364246721,-460.0,0.00021249,2]